[Event "Late-Titled-Tuesday-Blitz-June-25-2024"]
[Site "Chess.com"]
[Date "2024.06.25"]
[Round "5"]
[White "Chessmissile07"]
[Black "ManMish2"]
[Result "1-0"]
[WhiteElo "2838"]
[BlackElo "2628"]
[TimeControl "180+1"]
[EndTime "14:54:33 PDT"]
[Termination "Chessmissile07 won on time"]

1. a3 {[%clk 0:03:00.9]} 1... e5 {[%clk 0:02:51.3]} 2. c4 {[%clk 0:02:59.8]}
2... a5 {[%clk 0:02:49.8]} 3. Nc3 {[%clk 0:02:56.1]} 3... Nc6 {[%clk 0:02:45.4]}
4. Nf3 {[%clk 0:02:50.9]} 4... Nf6 {[%clk 0:02:44.7]} 5. g3 {[%clk 0:02:50.7]}
5... d5 {[%clk 0:02:35.4]} 6. cxd5 {[%clk 0:02:49.5]} 6... Nxd5 {[%clk
0:02:36.3]} 7. Bg2 {[%clk 0:02:47.3]} 7... Be6 {[%clk 0:02:32.4]} 8. d4 {[%clk
0:02:34.5]} 8... exd4 {[%clk 0:01:58.6]} 9. Nxd4 {[%clk 0:02:31.8]} 9... Nxc3
{[%clk 0:01:54.1]} 10. bxc3 {[%clk 0:02:28.9]} 10... Nxd4 {[%clk 0:01:52.3]} 11.
Qxd4 {[%clk 0:02:13.6]} 11... Qxd4 {[%clk 0:01:31.8]} 12. cxd4 {[%clk
0:02:14.5]} 12... O-O-O {[%clk 0:01:30.8]} 13. Bb2 {[%clk 0:02:08.9]} 13... Be7
{[%clk 0:01:20.9]} 14. O-O {[%clk 0:02:06.6]} 14... Bf6 {[%clk 0:01:16.5]} 15.
Rfd1 {[%clk 0:02:06.7]} 15... Rhe8 {[%clk 0:01:10.9]} 16. e4 {[%clk 0:02:00.5]}
16... Bb3 {[%clk 0:00:59.9]} 17. Rd2 {[%clk 0:01:51.9]} 17... c6 {[%clk
0:00:39.8]} 18. d5 {[%clk 0:01:37]} 18... c5 {[%clk 0:00:31.4]} 19. Rc1 {[%clk
0:00:53.5]} 19... b6 {[%clk 0:00:27.3]} 20. f4 {[%clk 0:00:53.2]} 20... Bxb2
{[%clk 0:00:26.5]} 21. Rxb2 {[%clk 0:00:54.1]} 21... a4 {[%clk 0:00:26.9]} 22.
e5 {[%clk 0:00:47]} 22... f6 {[%clk 0:00:27]} 23. Re1 {[%clk 0:00:38.1]} 23...
fxe5 {[%clk 0:00:24.3]} 24. fxe5 {[%clk 0:00:38.4]} 24... Kb8 {[%clk 0:00:14.6]}
25. Rd2 {[%clk 0:00:25.7]} 25... c4 {[%clk 0:00:14.7]} 26. Re3 {[%clk
0:00:22.9]} 26... b5 {[%clk 0:00:12.2]} 27. d6 {[%clk 0:00:20.6]} 27... c3
{[%clk 0:00:12]} 28. Rxc3 {[%clk 0:00:19.4]} 28... Rxe5 {[%clk 0:00:12.6]} 29.
Rc7 {[%clk 0:00:19.7]} 29... Re1+ {[%clk 0:00:09.2]} 30. Kf2 {[%clk 0:00:19.1]}
30... Re6 {[%clk 0:00:03.7]} 31. Rb7+ {[%clk 0:00:12.1]} 31... Kc8 {[%clk
0:00:04.3]} 32. d7+ {[%clk 0:00:12.3]} 32... Rxd7 {[%clk 0:00:04.6]} 33. Rdxd7
{[%clk 0:00:12.7]} 33... Rf6+ {[%clk 0:00:05.1]} 34. Ke3 {[%clk 0:00:12.7]}
34... Re6+ {[%clk 0:00:04.7]} 35. Kd4 {[%clk 0:00:13]} 35... Bc4 {[%clk
0:00:03]} 36. Bh3 {[%clk 0:00:12.1]} 1-0

[Event "Late-Titled-Tuesday-Blitz-June-25-2024"]
[Site "Chess.com"]
[Date "2024.06.25"]
[Round "5"]
[White "PapaieDudu"]
[Black "albi1999"]
[Result "0-1"]
[WhiteElo "2458"]
[BlackElo "2642"]
[TimeControl "180+1"]
[EndTime "14:54:36 PDT"]
[Termination "albi1999 won by resignation"]

1. Nf3 {[%clk 0:03:00.2]} 1... g6 {[%clk 0:02:53]} 2. d4 {[%clk 0:02:59.8]} 2...
Bg7 {[%clk 0:02:52.1]} 3. c4 {[%clk 0:03:00.5]} 3... e6 {[%clk 0:02:51.2]} 4.
Nc3 {[%clk 0:03:00.3]} 4... Ne7 {[%clk 0:02:51.8]} 5. Bg5 {[%clk 0:03:00.5]}
5... h6 {[%clk 0:02:51.4]} 6. Bh4 {[%clk 0:03:00.1]} 6... O-O {[%clk 0:02:45.2]}
7. e4 {[%clk 0:02:59.5]} 7... g5 {[%clk 0:02:42.8]} 8. Bg3 {[%clk 0:02:58.1]}
8... d5 {[%clk 0:02:42.4]} 9. Bd3 {[%clk 0:02:57.1]} 9... Nbc6 {[%clk
0:02:40.4]} 10. e5 {[%clk 0:02:56]} 10... dxc4 {[%clk 0:02:31.5]} 11. Bxc4
{[%clk 0:02:48.1]} 11... Nf5 {[%clk 0:02:32]} 12. Ne2 {[%clk 0:02:47.1]} 12...
g4 {[%clk 0:02:23.3]} 13. Nd2 {[%clk 0:02:44.6]} 13... Ncxd4 {[%clk 0:02:16.6]}
14. O-O {[%clk 0:02:44.6]} 14... h5 {[%clk 0:02:00.8]} 15. Ne4 {[%clk
0:02:33.9]} 15... Nc6 {[%clk 0:01:40.6]} 16. Qa4 {[%clk 0:02:24.1]} 16... Nxe5
{[%clk 0:01:30.7]} 17. Nf4 {[%clk 0:02:15.4]} 17... h4 {[%clk 0:01:19.3]} 18.
Rad1 {[%clk 0:02:08.2]} 18... Qe7 {[%clk 0:01:08.7]} 19. Nh5 {[%clk 0:01:58.6]}
19... hxg3 {[%clk 0:01:07.3]} 20. Nxg7 {[%clk 0:01:52.3]} 20... gxh2+ {[%clk
0:01:04.8]} 21. Kh1 {[%clk 0:01:50.3]} 21... Kxg7 {[%clk 0:01:03.3]} 22. Be2
{[%clk 0:01:49.2]} 22... Bd7 {[%clk 0:00:59.2]} 23. Qb3 {[%clk 0:01:46.7]} 23...
Bc6 {[%clk 0:00:58.2]} 24. Qc3 {[%clk 0:01:46.3]} 24... f6 {[%clk 0:00:57.3]}
25. Ng3 {[%clk 0:01:40.8]} 25... Rad8 {[%clk 0:00:52.7]} 26. b4 {[%clk
0:01:32.1]} 26... Nh4 {[%clk 0:00:41.9]} 27. Nh5+ {[%clk 0:01:26.8]} 27... Kg8
{[%clk 0:00:35.6]} 28. f3 {[%clk 0:01:20.7]} 28... gxf3 {[%clk 0:00:34.5]} 29.
gxf3 {[%clk 0:01:20.8]} 29... Rxd1 {[%clk 0:00:34.1]} 30. Bxd1 {[%clk
0:01:20.7]} 30... Qf7 {[%clk 0:00:19.2]} 31. Nf4 {[%clk 0:01:12.5]} 31... Kh8
{[%clk 0:00:15.1]} 32. Rf2 {[%clk 0:00:53.6]} 32... Neg6 {[%clk 0:00:11.7]} 33.
Nh5 {[%clk 0:00:37.7]} 33... e5 {[%clk 0:00:08.4]} 34. Rxh2 {[%clk 0:00:25.9]}
34... Qd5 {[%clk 0:00:08.6]} 35. Be2 {[%clk 0:00:23.2]} 35... Qd4 {[%clk
0:00:08.4]} 36. Qc1 {[%clk 0:00:13]} 36... Kg8 {[%clk 0:00:05.2]} 37. Qh6 {[%clk
0:00:11.1]} 37... Qa1+ {[%clk 0:00:05.4]} 0-1

[Event "Late-Titled-Tuesday-Blitz-June-25-2024"]
[Site "Chess.com"]
[Date "2024.06.25"]
[Round "5"]
[White "ShimogaTactician"]
[Black "chesspingvin1995"]
[Result "0-1"]
[WhiteElo "2516"]
[BlackElo "2255"]
[TimeControl "180+1"]
[EndTime "14:54:40 PDT"]
[Termination "chesspingvin1995 won by resignation"]

1. Nf3 {[%clk 0:03:00.9]} 1... c5 {[%clk 0:02:58.7]} 2. c4 {[%clk 0:03:00.6]}
2... Nc6 {[%clk 0:02:58.6]} 3. Nc3 {[%clk 0:03:01]} 3... e5 {[%clk 0:02:57.1]}
4. e3 {[%clk 0:03:00.4]} 4... d6 {[%clk 0:02:57.1]} 5. d4 {[%clk 0:03:00.7]}
5... exd4 {[%clk 0:02:39.3]} 6. exd4 {[%clk 0:03:01.6]} 6... Bg4 {[%clk
0:02:39.3]} 7. Be2 {[%clk 0:02:51.3]} 7... Bxf3 {[%clk 0:02:34.7]} 8. Bxf3
{[%clk 0:02:52.2]} 8... Nxd4 {[%clk 0:02:35.3]} 9. O-O {[%clk 0:02:27.6]} 9...
Be7 {[%clk 0:02:24.3]} 10. Bxb7 {[%clk 0:02:15.1]} 10... Rb8 {[%clk 0:02:24.2]}
11. Bd5 {[%clk 0:02:15.3]} 11... Nf6 {[%clk 0:02:19.4]} 12. Be3 {[%clk
0:02:09.9]} 12... Nxd5 {[%clk 0:02:18.3]} 13. Nxd5 {[%clk 0:01:59.4]} 13... Ne6
{[%clk 0:02:09.6]} 14. b3 {[%clk 0:01:40.2]} 14... O-O {[%clk 0:02:07.5]} 15.
Qd3 {[%clk 0:01:40.6]} 15... Bf6 {[%clk 0:02:03.9]} 16. Rad1 {[%clk 0:01:39.9]}
16... Bd4 {[%clk 0:01:58.8]} 17. Kh1 {[%clk 0:01:37.5]} 17... Qa5 {[%clk
0:01:36.6]} 18. Qd2 {[%clk 0:01:35.9]} 18... Qxd2 {[%clk 0:01:35.9]} 19. Rxd2
{[%clk 0:01:36.4]} 19... Rfe8 {[%clk 0:01:32.1]} 20. g3 {[%clk 0:01:32.5]} 20...
f6 {[%clk 0:01:27]} 21. Kg2 {[%clk 0:01:30.2]} 21... Kf7 {[%clk 0:01:27.4]} 22.
Rfd1 {[%clk 0:01:28.5]} 22... a5 {[%clk 0:01:19.4]} 23. Bxd4 {[%clk 0:01:09.1]}
23... Nxd4 {[%clk 0:01:19.3]} 24. Nc3 {[%clk 0:01:09.5]} 24... Re6 {[%clk
0:00:57.5]} 25. h4 {[%clk 0:01:03.7]} 25... h5 {[%clk 0:00:56.3]} 26. f3 {[%clk
0:00:43.9]} 26... Rbe8 {[%clk 0:00:50.9]} 27. Ne4 {[%clk 0:00:39.4]} 27... Kf8
{[%clk 0:00:38.1]} 28. Rxd4 {[%clk 0:00:39.1]} 28... cxd4 {[%clk 0:00:37.9]} 29.
Rxd4 {[%clk 0:00:40]} 29... Ke7 {[%clk 0:00:21.4]} 30. Rd5 {[%clk 0:00:35.7]}
30... Re5 {[%clk 0:00:21.9]} 31. Rd4 {[%clk 0:00:22]} 31... a4 {[%clk
0:00:22.1]} 32. Nxd6 {[%clk 0:00:15.8]} 32... Ra8 {[%clk 0:00:20.6]} 33. b4
{[%clk 0:00:15]} 33... Re2+ {[%clk 0:00:20.1]} 34. Kh3 {[%clk 0:00:14.4]} 34...
Rxa2 {[%clk 0:00:20.8]} 35. c5 {[%clk 0:00:11.4]} 35... Rc2 {[%clk 0:00:19.3]}
36. Nb5 {[%clk 0:00:03.7]} 36... a3 {[%clk 0:00:17.4]} 37. Re4+ {[%clk 0:00:04]}
37... Kd7 {[%clk 0:00:16.9]} 38. Re1 {[%clk 0:00:02.7]} 38... a2 {[%clk
0:00:16.9]} 39. Ra1 {[%clk 0:00:03.2]} 39... Rb2 {[%clk 0:00:16.5]} 40. Nd4
{[%clk 0:00:02.6]} 40... Rb1 {[%clk 0:00:15.8]} 41. c6+ {[%clk 0:00:03.5]} 41...
Kd6 {[%clk 0:00:13.9]} 42. Nc2 {[%clk 0:00:04.4]} 42... Rxa1 {[%clk 0:00:14.1]}
43. Nxa1 {[%clk 0:00:05.3]} 43... Kxc6 {[%clk 0:00:12.7]} 0-1

[Event "Late-Titled-Tuesday-Blitz-June-25-2024"]
[Site "Chess.com"]
[Date "2024.06.25"]
[Round "5"]
[White "Rodalquilar"]
[Black "Bykov_Egor"]
[Result "1-0"]
[WhiteElo "2833"]
[BlackElo "2617"]
[TimeControl "180+1"]
[EndTime "14:54:41 PDT"]
[Termination "Rodalquilar won on time"]

1. d4 {[%clk 0:03:00.9]} 1... Nf6 {[%clk 0:03:00.1]} 2. Nf3 {[%clk 0:03:01.1]}
2... g6 {[%clk 0:03:00.1]} 3. Bf4 {[%clk 0:03:00.1]} 3... Bg7 {[%clk 0:03:00]}
4. e3 {[%clk 0:03:00.6]} 4... O-O {[%clk 0:03:00.2]} 5. Be2 {[%clk 0:03:00.9]}
5... d6 {[%clk 0:03:00.6]} 6. O-O {[%clk 0:03:01.1]} 6... b6 {[%clk 0:03:01.1]}
7. h3 {[%clk 0:03:00.7]} 7... Bb7 {[%clk 0:03:01.4]} 8. Bh2 {[%clk 0:03:00.9]}
8... Re8 {[%clk 0:02:59.7]} 9. a4 {[%clk 0:03:00.6]} 9... a6 {[%clk 0:02:59.3]}
10. Nbd2 {[%clk 0:02:50.7]} 10... Nc6 {[%clk 0:02:57.9]} 11. e4 {[%clk
0:02:31.5]} 11... e5 {[%clk 0:02:55]} 12. d5 {[%clk 0:02:25.6]} 12... Nb8 {[%clk
0:02:33.4]} 13. a5 {[%clk 0:02:23.4]} 13... Nbd7 {[%clk 0:02:22.1]} 14. axb6
{[%clk 0:02:19.2]} 14... cxb6 {[%clk 0:02:22.1]} 15. b4 {[%clk 0:02:19.8]} 15...
Nh5 {[%clk 0:02:10.4]} 16. Re1 {[%clk 0:02:18.6]} 16... Nf4 {[%clk 0:02:05.6]}
17. Bf1 {[%clk 0:02:17.9]} 17... f5 {[%clk 0:01:42.3]} 18. Ra3 {[%clk
0:01:51.2]} 18... Nf6 {[%clk 0:01:11.2]} 19. c4 {[%clk 0:01:43]} 19... fxe4
{[%clk 0:00:49.7]} 20. Nxe4 {[%clk 0:01:41.3]} 20... Nxe4 {[%clk 0:00:50]} 21.
Rxe4 {[%clk 0:01:41.7]} 21... Qf6 {[%clk 0:00:49.8]} 22. Qe1 {[%clk 0:00:50.4]}
22... g5 {[%clk 0:00:49.2]} 23. Qe3 {[%clk 0:00:48]} 23... b5 {[%clk 0:00:41.5]}
24. Qb6 {[%clk 0:00:41.4]} 24... Reb8 {[%clk 0:00:36.1]} 25. Bxf4 {[%clk
0:00:28.6]} 25... gxf4 {[%clk 0:00:25.6]} 26. Qc7 {[%clk 0:00:28.4]} 26... bxc4
{[%clk 0:00:24.6]} 27. Bxc4 {[%clk 0:00:27.3]} 27... Bf8 {[%clk 0:00:18.7]} 28.
Re1 {[%clk 0:00:17.6]} 28... Bc8 {[%clk 0:00:18.8]} 29. Qa5 {[%clk 0:00:15.8]}
29... Bf5 {[%clk 0:00:15.9]} 30. Nd2 {[%clk 0:00:16.1]} 30... Qg6 {[%clk
0:00:14.5]} 31. Bf1 {[%clk 0:00:09.4]} 31... e4 {[%clk 0:00:13.2]} 32. Qa4
{[%clk 0:00:06.7]} 32... Bg7 {[%clk 0:00:13.2]} 33. Qd1 {[%clk 0:00:05.1]} 33...
Rxb4 {[%clk 0:00:10.6]} 34. Nc4 {[%clk 0:00:04.7]} 34... f3 {[%clk 0:00:06.9]}
35. Na5 {[%clk 0:00:03.9]} 35... fxg2 {[%clk 0:00:05]} 36. Bxg2 {[%clk
0:00:04.5]} 36... Be5 {[%clk 0:00:04.1]} 37. Nc6 {[%clk 0:00:04.2]} 1-0

[Event "Late-Titled-Tuesday-Blitz-June-25-2024"]
[Site "Chess.com"]
[Date "2024.06.25"]
[Round "5"]
[White "Yurovskykh_Oleksandr"]
[Black "Akhayan"]
[Result "1/2-1/2"]
[WhiteElo "2614"]
[BlackElo "2413"]
[TimeControl "180+1"]
[EndTime "14:54:41 PDT"]
[Termination "Game drawn - insufficient material"]

1. d4 {[%clk 0:02:54.8]} 1... Nf6 {[%clk 0:02:59.7]} 2. Nf3 {[%clk 0:02:54.4]}
2... g6 {[%clk 0:02:59.7]} 3. Bg5 {[%clk 0:02:53.5]} 3... Bg7 {[%clk 0:02:59.9]}
4. Nbd2 {[%clk 0:02:52.5]} 4... d5 {[%clk 0:02:59.5]} 5. e3 {[%clk 0:02:51.6]}
5... O-O {[%clk 0:03:00]} 6. Be2 {[%clk 0:02:50.3]} 6... Ne4 {[%clk 0:02:57.7]}
7. Nxe4 {[%clk 0:02:41.7]} 7... dxe4 {[%clk 0:02:57.3]} 8. Nd2 {[%clk
0:02:42.3]} 8... c5 {[%clk 0:02:52.1]} 9. c3 {[%clk 0:02:39.1]} 9... cxd4 {[%clk
0:02:51.9]} 10. exd4 {[%clk 0:02:38.1]} 10... h6 {[%clk 0:02:25.2]} 11. Be3
{[%clk 0:02:20]} 11... f5 {[%clk 0:02:22.6]} 12. g3 {[%clk 0:02:16.1]} 12... Kh7
{[%clk 0:02:22.1]} 13. f3 {[%clk 0:02:04.3]} 13... exf3 {[%clk 0:02:19.8]} 14.
Nxf3 {[%clk 0:02:05.2]} 14... Nc6 {[%clk 0:02:19.2]} 15. O-O {[%clk 0:01:38.2]}
15... e5 {[%clk 0:02:18.5]} 16. dxe5 {[%clk 0:01:36.2]} 16... Nxe5 {[%clk
0:02:18.1]} 17. Nxe5 {[%clk 0:01:28.3]} 17... Bxe5 {[%clk 0:02:17.5]} 18. Qxd8
{[%clk 0:01:23.2]} 18... Rxd8 {[%clk 0:02:17]} 19. Rad1 {[%clk 0:01:23.4]} 19...
Be6 {[%clk 0:02:15.7]} 20. a3 {[%clk 0:01:22.3]} 20... b6 {[%clk 0:02:07.5]} 21.
Rxd8 {[%clk 0:01:06.8]} 21... Rxd8 {[%clk 0:02:07]} 22. Rd1 {[%clk 0:01:07.4]}
22... Rxd1+ {[%clk 0:01:51.2]} 23. Bxd1 {[%clk 0:01:08.3]} 23... g5 {[%clk
0:01:50]} 24. Kf2 {[%clk 0:01:05]} 24... Kg6 {[%clk 0:01:44]} 25. Bc2 {[%clk
0:01:05]} 25... Kf6 {[%clk 0:01:42.2]} 26. Bd2 {[%clk 0:00:58.9]} 26... Bd6
{[%clk 0:01:30.1]} 27. Be3 {[%clk 0:00:57.7]} 27... Be5 {[%clk 0:01:25.6]} 28.
a4 {[%clk 0:00:54.3]} 28... f4 {[%clk 0:01:17]} 29. gxf4 {[%clk 0:00:50.1]}
29... gxf4 {[%clk 0:01:17.6]} 30. Bd2 {[%clk 0:00:39.1]} 30... Bd5 {[%clk
0:01:12.8]} 31. b3 {[%clk 0:00:29.7]} 31... Kg5 {[%clk 0:00:57.8]} 32. b4 {[%clk
0:00:17.6]} 32... Kg4 {[%clk 0:00:50.2]} 33. a5 {[%clk 0:00:09.9]} 33... bxa5
{[%clk 0:00:48.7]} 34. bxa5 {[%clk 0:00:10.8]} 34... Bc7 {[%clk 0:00:45.9]} 35.
Bd1+ {[%clk 0:00:06.2]} 35... Kh3 {[%clk 0:00:44.9]} 36. Bf3 {[%clk 0:00:06.7]}
36... Bxf3 {[%clk 0:00:36.7]} 37. Kxf3 {[%clk 0:00:07.6]} 37... Bxa5 {[%clk
0:00:36.9]} 38. Bxf4 {[%clk 0:00:06.3]} 38... Bxc3 {[%clk 0:00:33.9]} 39. Bxh6
{[%clk 0:00:05.8]} 39... Kxh2 {[%clk 0:00:33.8]} 40. Bf8 {[%clk 0:00:05.6]}
40... Kg1 {[%clk 0:00:26.4]} 41. Ke2 {[%clk 0:00:05.4]} 41... Kg2 {[%clk
0:00:26.2]} 42. Kd3 {[%clk 0:00:05.7]} 42... Be5 {[%clk 0:00:25.4]} 43. Kc4
{[%clk 0:00:04.9]} 43... Kf3 {[%clk 0:00:25]} 44. Bc5 {[%clk 0:00:04.7]} 44...
a6 {[%clk 0:00:24.8]} 45. Kb4 {[%clk 0:00:04.4]} 45... Bc7 {[%clk 0:00:25]} 46.
Ka4 {[%clk 0:00:04.4]} 46... Ke4 {[%clk 0:00:25]} 47. Bb4 {[%clk 0:00:04.6]}
47... Kd5 {[%clk 0:00:25.1]} 48. Ba5 {[%clk 0:00:05.1]} 48... Bd6 {[%clk
0:00:25.6]} 49. Bb4 {[%clk 0:00:05.4]} 49... Be5 {[%clk 0:00:24.7]} 50. Ka5
{[%clk 0:00:05.6]} 50... Bd6 {[%clk 0:00:23.7]} 51. Kxa6 {[%clk 0:00:06.5]}
1/2-1/2

[Event "Late-Titled-Tuesday-Blitz-June-25-2024"]
[Site "Chess.com"]
[Date "2024.06.25"]
[Round "5"]
[White "Grossboss19"]
[Black "arnoldpetra"]
[Result "1-0"]
[WhiteElo "2617"]
[BlackElo "2442"]
[TimeControl "180+1"]
[EndTime "14:54:41 PDT"]
[Termination "Grossboss19 won on time"]

1. c4 {[%clk 0:03:00.9]} 1... d6 {[%clk 0:02:58.6]} 2. Nc3 {[%clk 0:02:59.8]}
2... c6 {[%clk 0:02:59.5]} 3. d4 {[%clk 0:02:59.3]} 3... g6 {[%clk 0:03:00.4]}
4. g3 {[%clk 0:02:58.3]} 4... Bg7 {[%clk 0:03:01.2]} 5. Bg2 {[%clk 0:02:58]}
5... Be6 {[%clk 0:03:01.9]} 6. b3 {[%clk 0:02:54.7]} 6... Qb6 {[%clk 0:03:01.1]}
7. e3 {[%clk 0:02:53]} 7... Nf6 {[%clk 0:02:58.6]} 8. Bb2 {[%clk 0:02:52.5]}
8... O-O {[%clk 0:02:58.2]} 9. Nge2 {[%clk 0:02:51.5]} 9... Bg4 {[%clk
0:02:57.9]} 10. O-O {[%clk 0:02:50.9]} 10... Bxe2 {[%clk 0:02:57.6]} 11. Qxe2
{[%clk 0:02:50.1]} 11... a5 {[%clk 0:02:57.4]} 12. Rad1 {[%clk 0:02:47.7]} 12...
Na6 {[%clk 0:02:56.5]} 13. e4 {[%clk 0:02:45.4]} 13... e5 {[%clk 0:02:55.3]} 14.
Na4 {[%clk 0:02:41.1]} 14... Qc7 {[%clk 0:02:54.6]} 15. f4 {[%clk 0:02:38.4]}
15... exd4 {[%clk 0:02:49.1]} 16. Bxd4 {[%clk 0:02:35.9]} 16... Rfe8 {[%clk
0:02:35.7]} 17. Qb2 {[%clk 0:02:24.7]} 17... Nh5 {[%clk 0:02:30.8]} 18. Rd2
{[%clk 0:02:14.5]} 18... Bxd4+ {[%clk 0:01:56]} 19. Qxd4 {[%clk 0:02:15.4]}
19... Rad8 {[%clk 0:01:55.9]} 20. Rfd1 {[%clk 0:02:10.3]} 20... Ng7 {[%clk
0:01:44.9]} 21. Qb6 {[%clk 0:02:08.9]} 21... Qxb6+ {[%clk 0:01:40.5]} 22. Nxb6
{[%clk 0:02:09.8]} 22... Nc5 {[%clk 0:01:38.7]} 23. e5 {[%clk 0:01:58]} 23...
Nf5 {[%clk 0:01:38.4]} 24. exd6 {[%clk 0:01:49]} 24... Ne3 {[%clk 0:01:36.9]}
25. Re1 {[%clk 0:01:47.4]} 25... Nxg2 {[%clk 0:01:35.3]} 26. Rxe8+ {[%clk
0:01:47]} 26... Rxe8 {[%clk 0:01:35.2]} 27. Kxg2 {[%clk 0:01:47.2]} 27... Rd8
{[%clk 0:01:33.6]} 28. Rd1 {[%clk 0:01:14]} 28... f5 {[%clk 0:01:27.2]} 29. h3
{[%clk 0:01:09.4]} 29... Kf7 {[%clk 0:01:26.3]} 30. g4 {[%clk 0:01:09.1]} 30...
Ne4 {[%clk 0:01:21.7]} 31. d7 {[%clk 0:01:04.4]} 31... h5 {[%clk 0:01:05.2]} 32.
Kf3 {[%clk 0:00:53.4]} 32... hxg4+ {[%clk 0:01:04.9]} 33. hxg4 {[%clk
0:00:54.3]} 33... Nc5 {[%clk 0:01:00.8]} 34. gxf5 {[%clk 0:00:46.6]} 34... gxf5
{[%clk 0:00:10.1]} 35. Kg3 {[%clk 0:00:46.4]} 35... Ne4+ {[%clk 0:00:09.8]} 36.
Kh2 {[%clk 0:00:45.2]} 36... Ke6 {[%clk 0:00:09.6]} 37. Rg1 {[%clk 0:00:23.5]}
37... Rh8+ {[%clk 0:00:05.9]} 38. Kg2 {[%clk 0:00:23]} 38... Rg8+ {[%clk
0:00:06]} 39. Kf3 {[%clk 0:00:19.6]} 39... Rxg1 {[%clk 0:00:02.9]} 40. d8=Q
{[%clk 0:00:19]} 40... Rg3+ {[%clk 0:00:03.6]} 41. Ke2 {[%clk 0:00:18.7]} 41...
Rg2+ {[%clk 0:00:04.2]} 42. Kf1 {[%clk 0:00:18.6]} 42... Rf2+ {[%clk 0:00:04.4]}
43. Ke1 {[%clk 0:00:19]} 43... Rxa2 {[%clk 0:00:03.5]} 44. Qe8+ {[%clk
0:00:18.9]} 44... Kd6 {[%clk 0:00:02.5]} 45. Qf8+ {[%clk 0:00:19.3]} 45... Kc7
{[%clk 0:00:01.3]} 46. Na8+ {[%clk 0:00:19.3]} 1-0

[Event "Late-Titled-Tuesday-Blitz-June-25-2024"]
[Site "Chess.com"]
[Date "2024.06.25"]
[Round "5"]
[White "ALRS-SPS"]
[Black "HajiyevKanan"]
[Result "1/2-1/2"]
[WhiteElo "2446"]
[BlackElo "2603"]
[TimeControl "180+1"]
[EndTime "14:54:42 PDT"]
[Termination "Game drawn by repetition"]

1. e4 {[%clk 0:03:00.9]} 1... a6 {[%clk 0:02:58]} 2. Nf3 {[%clk 0:03:00.5]} 2...
c6 {[%clk 0:02:58.9]} 3. Nc3 {[%clk 0:02:59.5]} 3... d5 {[%clk 0:02:59.8]} 4. d4
{[%clk 0:02:58.2]} 4... Bg4 {[%clk 0:02:59.5]} 5. Be2 {[%clk 0:02:57.4]} 5... e6
{[%clk 0:02:58.8]} 6. h3 {[%clk 0:02:56.7]} 6... Bh5 {[%clk 0:02:59.1]} 7. O-O
{[%clk 0:02:55.7]} 7... Nf6 {[%clk 0:02:59.1]} 8. Bg5 {[%clk 0:02:48]} 8... Be7
{[%clk 0:02:59.1]} 9. e5 {[%clk 0:02:40.7]} 9... Nfd7 {[%clk 0:02:59.4]} 10.
Bxe7 {[%clk 0:02:41.1]} 10... Qxe7 {[%clk 0:03:00.3]} 11. Nd2 {[%clk 0:02:38.1]}
11... Bg6 {[%clk 0:02:59.1]} 12. Nb3 {[%clk 0:02:37.4]} 12... c5 {[%clk
0:02:59.1]} 13. dxc5 {[%clk 0:02:36.4]} 13... Nxe5 {[%clk 0:02:59.4]} 14. Na4
{[%clk 0:02:27.2]} 14... Nbd7 {[%clk 0:02:58.4]} 15. Qd4 {[%clk 0:02:24.6]}
15... Rc8 {[%clk 0:02:58.1]} 16. f4 {[%clk 0:02:19]} 16... Nc6 {[%clk
0:02:51.4]} 17. Qxg7 {[%clk 0:02:18.6]} 17... Qf6 {[%clk 0:02:46.5]} 18. Qxf6
{[%clk 0:02:11.2]} 18... Nxf6 {[%clk 0:02:47.4]} 19. Bd3 {[%clk 0:02:07.1]}
19... Nb4 {[%clk 0:02:43]} 20. Bxg6 {[%clk 0:01:57.9]} 20... hxg6 {[%clk
0:02:43.9]} 21. c3 {[%clk 0:01:50.4]} 21... Nc2 {[%clk 0:02:42]} 22. Rac1 {[%clk
0:01:46.8]} 22... Ne3 {[%clk 0:02:42]} 23. Nb6 {[%clk 0:01:34.2]} 23... Rc6
{[%clk 0:02:29.3]} 24. Rfe1 {[%clk 0:01:27.3]} 24... Nc4 {[%clk 0:02:23.9]} 25.
Nxc4 {[%clk 0:01:21.4]} 25... dxc4 {[%clk 0:02:24.8]} 26. Na5 {[%clk 0:01:22]}
26... Rc7 {[%clk 0:02:24.6]} 27. b4 {[%clk 0:01:17.4]} 27... Rh4 {[%clk
0:02:07.2]} 28. Nxc4 {[%clk 0:01:13.1]} 28... Rxf4 {[%clk 0:02:05.4]} 29. Rf1
{[%clk 0:01:07.5]} 29... Rxc4 {[%clk 0:01:53]} 30. Rxf6 {[%clk 0:01:07.6]} 30...
a5 {[%clk 0:01:53.7]} 31. a3 {[%clk 0:01:07.3]} 31... Ke7 {[%clk 0:01:53.8]} 32.
Rf3 {[%clk 0:01:06]} 32... axb4 {[%clk 0:01:51.4]} 33. axb4 {[%clk 0:01:06.2]}
33... b6 {[%clk 0:01:51.6]} 34. cxb6 {[%clk 0:01:03.3]} 34... Rb7 {[%clk
0:01:52.2]} 35. Rd3 {[%clk 0:01:00.8]} 35... Rxb6 {[%clk 0:01:52.2]} 36. Rcd1
{[%clk 0:01:01.2]} 36... Rbc6 {[%clk 0:01:51.9]} 37. Rd7+ {[%clk 0:00:59.4]}
37... Ke8 {[%clk 0:01:46.6]} 38. Rd8+ {[%clk 0:00:55.7]} 38... Ke7 {[%clk
0:01:46.9]} 39. R1d7+ {[%clk 0:00:54.4]} 39... Kf6 {[%clk 0:01:47.1]} 40. Rf8
{[%clk 0:00:53.8]} 40... Rxc3 {[%clk 0:01:44.2]} 41. Rfxf7+ {[%clk 0:00:53.6]}
41... Ke5 {[%clk 0:01:44.8]} 42. Rg7 {[%clk 0:00:51.6]} 42... Rb3 {[%clk
0:01:33.8]} 43. Rxg6 {[%clk 0:00:42.6]} 43... Rxb4 {[%clk 0:01:34.1]} 44. Rd2
{[%clk 0:00:37.2]} 44... Kf5 {[%clk 0:01:32.5]} 45. Rg8 {[%clk 0:00:35.6]} 45...
e5 {[%clk 0:01:25.1]} 46. Rf8+ {[%clk 0:00:34.2]} 46... Ke6 {[%clk 0:01:00.3]}
47. Re8+ {[%clk 0:00:32.3]} 47... Kf5 {[%clk 0:00:55]} 48. Rf2+ {[%clk
0:00:31.2]} 48... Rf4 {[%clk 0:00:55.1]} 49. Rf8+ {[%clk 0:00:30.1]} 49... Ke4
{[%clk 0:00:54.8]} 50. Re2+ {[%clk 0:00:29]} 50... Kd3 {[%clk 0:00:50]} 51. Rxf4
{[%clk 0:00:24]} 51... exf4 {[%clk 0:00:50.2]} 52. Rf2 {[%clk 0:00:23.2]} 52...
Ke4 {[%clk 0:00:50.6]} 53. Kh2 {[%clk 0:00:22.1]} 53... Rg6 {[%clk 0:00:46.7]}
54. Rf3 {[%clk 0:00:21.2]} 54... Rh6 {[%clk 0:00:46.5]} 55. Ra3 {[%clk
0:00:20.2]} 55... Rh8 {[%clk 0:00:45.5]} 56. Ra4+ {[%clk 0:00:19.6]} 56... Ke3
{[%clk 0:00:46.1]} 57. Ra3+ {[%clk 0:00:20]} 57... Ke4 {[%clk 0:00:46.7]} 58.
Rf3 {[%clk 0:00:20]} 58... Rh7 {[%clk 0:00:46.5]} 59. Rb3 {[%clk 0:00:18.8]}
59... Rh6 {[%clk 0:00:46.7]} 60. Rb4+ {[%clk 0:00:18.4]} 60... Ke3 {[%clk
0:00:47.3]} 61. Rb3+ {[%clk 0:00:18.7]} 61... Ke4 {[%clk 0:00:47.9]} 62. Ra3
{[%clk 0:00:16.5]} 62... Rh7 {[%clk 0:00:47.5]} 63. Rb3 {[%clk 0:00:15.2]} 63...
Rh6 {[%clk 0:00:46.8]} 1/2-1/2